bitfinex-derivatives/quotes_SOLF0:USTF0_20240904
["timestamp","ask_amount","ask_price","bid_price","bid_amount"]
[1725485409386,3.78580156,133.79,133.76,3.78941287]
[1725485409588,0.04830156,133.79,133.77,3.7379]
[1725485411989,0.04830156,133.79,133.78,3.7376]
[1725485412481,0.04830156,133.79,133.76,2.78511287]
[1725485414500,0.04830156,133.79,133.78,3.7376]
[1725485429897,0.04830156,133.79,133.78,12.9276]
[1725485432302,3.736,133.84,133.78,12.9276]
[1725485432501,9.19,133.86,133.79,9.19]
[1725485432702,9.19,133.86,133.8,1.3837]
[1725485432898,9.19,133.86,133.81,3.67917476]
[1725485433505,0.05470324,133.85,133.82,0.05042582]
[1725485434304,0.05470324,133.85,133.83,3.736]
[1725485436006,0.05470324,133.85,133.84,3.7359]
[1725485448617,3.79040324,133.85,133.82,3.78682582]
[1725485449228,3.7361,133.84,133.82,0.05042582]
[1725485450524,3.7361,133.84,133.82,3.78692582]
[1725485451219,3.79060324,133.85,133.82,3.78692582]
[1725485451416,0.05470324,133.85,133.82,3.78692582]
[1725485452426,3.736,133.84,133.82,3.78692582]
[1725485463137,3.79050324,133.85,133.82,3.78692582]
[1725485473944,3.79050324,133.85,133.83,3.7362]
[1725485491662,0.05470324,133.85,133.83,3.7362]
[1725485492467,0.05470324,133.85,133.84,3.7359]
[1725485494059,0.05470324,133.85,133.83,3.7361]
[1725485499769,0.05470324,133.85,133.82,3.78692582]
[1725485500268,3.79050324,133.85,133.83,3.7362]
[1725485500467,3.79050324,133.85,133.82,0.05042582]
[1725485500970,0.05470324,133.85,133.83,3.7361]
[1725485506075,0.05470324,133.85,133.84,3.7359]
[1725485519974,0.05470324,133.85,133.82,0.05042582]
[1725485520379,9.24470324,133.85,133.82,0.05042582]
[1725485520575,12.98050324,133.85,133.82,3.78672582]
[1725485521178,3.7359,133.84,133.82,0.05042582]
[1725485521475,9.19,133.84,133.82,0.05042582]
[1725485521881,3.7362,133.83,133.82,0.05042582]
[1725485522175,0.05470324,133.85,133.82,3.78692582]
[1725485522376,3.79060324,133.85,133.82,3.78692582]
[1725485525478,3.736,133.84,133.82,0.05042582]
[1725485525984,3.79050324,133.85,133.82,3.78672582]
[1725485527283,0.05470324,133.85,133.83,9.19]
[1725485527770,0.05470324,133.85,133.84,3.7359]
[1725485540491,0.05470324,133.85,133.84,12.9259]
[1725485542194,12.9242,133.91,133.88,3.7347]
[1725485543191,12.97592507,133.91,133.88,3.78776981]
[1725485544691,3.7343,133.9,133.88,3.78776981]
[1725485547693,9.24172507,133.91,133.89,3.7343]
[1725485547995,0.05172507,133.91,133.89,3.7343]
[1725485548890,0.05172507,133.91,133.9,3.7343]
[1725485560802,0.05172507,133.91,133.89,3.7344]
[1725485574508,3.7343,133.9,133.88,3.78766981]
[1725485574713,0.05172507,133.91,133.88,0.05306981]
[1725485574914,9.24172507,133.91,133.88,0.05306981]
[1725485576412,12.97572507,133.91,133.89,3.7345]
[1725485577815,3.7343,133.9,133.88,3.78786981]
[1725485579613,9.19,133.9,133.88,0.05306981]
[1725485580619,3.7345,133.89,133.88,0.05306981]
[1725485581915,12.9245,133.89,133.88,0.05306981]
[1725485585521,3.7345,133.89,133.88,0.05306981]
[1725485585721,12.9245,133.89,133.88,0.05306981]
[1725485594133,3.7345,133.89,133.88,0.05306981]
[1725485594330,12.9245,133.89,133.88,0.05306981]
[1725485641651,3.7345,133.89,133.88,0.05306981]
[1725485641852,12.9245,133.89,133.88,0.05306981]
[1725485653561,3.7345,133.89,133.88,0.05306981]
[1725485654072,12.9245,133.89,133.88,0.05306981]
[1725485656276,3.7345,133.89,133.88,0.05306981]
[1725485656467,12.9245,133.89,133.88,0.05306981]
[1725485674176,3.7354,133.87,133.83,3.7361]
[1725485674377,9.19,133.86,133.83,3.7361]
[1725485675185,9.2383078,133.86,133.83,3.78431759]
[1725485675581,12.9737078,133.86,133.83,3.78431759]
[1725485676682,9.19,133.85,133.83,0.04821759]
[1725485678391,3.7359,133.84,133.83,0.04821759]
[1725485690401,9.19,133.85,133.78,197.94946621]
[1725485690698,9.19,133.81,133.78,197.94946621]
[1725485691195,9.23726875,133.81,133.78,197.99939857]
[1725485691396,3.7371,133.8,133.78,197.99939857]
[1725485697105,7.448972,133.8,133.78,197.99939857]
[1725485697899,3.7373,133.79,133.78,197.99939857]
[1725485698200,3.7373,133.79,133.78,196.56599857]
[1725485700606,3.7373,133.79,133.78,0.04993236]
[1725485702499,12.9273,133.79,133.78,0.04993236]
[1725485702705,3.7373,133.79,133.78,0.04993236]
[1725485712326,3.711872,133.8,133.78,0.04993236]
[1725485712514,9.19,133.79,133.78,0.04993236]
[1725485713323,12.9273,133.79,133.78,0.04993236]
[1725485720332,3.7373,133.79,133.78,0.04993236]
[1725485720534,12.9273,133.79,133.78,0.04993236]
[1725485722032,9.19,133.79,133.78,0.04993236]
[1725485722931,12.9273,133.79,133.78,0.04993236]
[1725485724328,0.04726875,133.81,133.78,9.23993236]
[1725485724831,0.04726875,133.81,133.79,3.7371]
[1725485725135,0.04726875,133.81,133.78,9.23993236]
[1725485725333,0.04726875,133.81,133.8,3.7371]
[1725485727136,12.9258,133.85,133.81,3.7365]
[1725485728236,12.9258,133.85,133.82,0.05160723]
[1725485728237,0.05079266,133.84,133.82,0.05160723]
[1725485728435,0.05079266,133.84,133.82,3.78810723]
[1725485728831,0.05079266,133.84,133.82,0.05160723]
[1725485730535,0.05079266,133.84,133.83,3.7362]
[1725485754459,0.05079266,133.84,133.82,3.78800723]
[1725485755454,3.78669266,133.84,133.82,3.78800723]
[1725485755958,12.97669266,133.84,133.82,0.05160723]
[1725485758462,3.7362,133.83,133.82,0.05160723]
[1725485801896,12.9262,133.83,133.82,0.05160723]
[1725485820907,3.7371,133.8,133.77,3.7378]
[1725485821110,9.19,133.79,133.77,3.7378]
[1725485821302,9.19,133.79,133.76,6.391]
[1725485821702,9.19,133.79,133.76,6.44745787]
[1725485821898,9.2373896,133.79,133.76,6.44745787]
[1725485822800,12.9747896,133.79,133.76,6.44745787]
[1725485824615,3.7376,133.78,133.76,6.44745787]
[1725485826811,9.2373896,133.79,133.76,2.70945787]
[1725485827002,9.19,133.78,133.76,0.05645787]
[1725485827607,3.7379,133.77,133.76,0.05645787]
[1725485829507,12.9279,133.77,133.76,0.05645787]
[1725485837218,3.7389,133.74,133.71,3.7395]
[1725485837517,12.9289,133.74,133.69,1.3831]
[1725485837913,12.9289,133.74,133.7,3.7397]
[1725485838115,3.7391,133.73,133.7,3.7397]
[1725485838315,3.79352588,133.73,133.7,3.79372285]
[1725485848134,3.79352588,133.73,133.71,3.7395]
[1725485859444,0.05442588,133.73,133.7,0.05402285]
[1725485861446,0.05442588,133.73,133.72,3.7393]
[1725485863039,3.7383,133.76,133.74,3.7387]
[1725485863244,1.4173,133.81,133.71,9.19]
[1725485863441,9.19,133.77,133.71,9.19]
[1725485863640,16.57898361,133.77,133.74,3.7386]
[1725485864045,16.57898361,133.77,133.74,3.79211287]
[1725485864351,16.63028121,133.77,133.74,3.79211287]
[1725485870055,12.9792976,133.77,133.74,3.79211287]
[1725485870757,9.2412976,133.77,133.75,3.7384]
[1725485872561,9.2412976,133.77,133.76,3.7382]
[1725485873960,0.0512976,133.77,133.76,3.7382]
[1725485874263,9.2412976,133.77,133.76,3.7382]
[1725485877755,9.2412976,133.77,133.75,3.7384]
[1725485882469,0.0512976,133.77,133.75,3.7384]
[1725485882665,0.0512976,133.77,133.76,3.7382]
[1725485891286,0.0512976,133.77,133.75,3.7383]
[1725485895476,12.9793976,133.77,133.74,3.79221287]
[1725485897778,12.9793976,133.77,133.75,3.7385]
[1725485913794,3.7893976,133.77,133.75,3.7385]
[1725485916292,0.0512976,133.77,133.74,0.05351287]
[1725485916501,0.0512976,133.77,133.76,3.7382]
[1725485958635,0.0512976,133.77,133.76,12.9282]
[1725485982846,3.7363,133.83,133.8,3.737]
[1725485983946,3.78669426,133.83,133.8,0.04751031]
[1725485988455,3.78669426,133.83,133.8,3.78451031]
[1725485994961,3.78669426,133.83,133.81,3.7367]
[1725486000362,3.78669426,133.83,133.8,3.78441031]
[1725486000561,3.78669426,133.83,133.8,0.04751031]
[1725486001057,3.78669426,133.83,133.81,3.7366]
[1725486001562,0.05039426,133.83,133.82,3.7365]
[1725486002561,0.05039426,133.83,133.82,12.9265]
[1725486013768,0.05039426,133.83,133.82,3.7365]
[1725486013965,0.05039426,133.83,133.82,12.9265]
[1725486022083,0.05039426,133.83,133.82,3.7365]
[1725486022379,0.05039426,133.83,133.81,12.9267]
[1725486024079,0.05039426,133.83,133.81,16.64213864]
[1725486027181,0.05039426,133.83,133.81,12.9267]
[1725486028988,0.05039426,133.83,133.82,3.7365]
[1725486060310,0.05039426,133.83,133.8,0.04751031]
[1725486060513,0.05039426,133.83,133.81,9.19]
[1725486062513,0.05039426,133.83,133.82,3.7365]
[1725486067915,0.05039426,133.83,133.82,12.9265]
[1725486072719,0.05039426,133.83,133.82,3.7365]
[1725486081822,0.05039426,133.83,133.82,12.9265]
[1725486084031,0.05039426,133.83,133.82,3.7365]
[1725486101535,18.54093749,133.93,133.82,9.19]
[1725486101740,19.87833749,133.93,133.85,9.19]
[1725486102039,10.5274,133.93,133.85,9.19]
[1725486102441,3.7345,133.9,133.86,3.7352]
[1725486102743,0.05228317,133.89,133.87,0.04919774]
[1725486103637,0.05228317,133.89,133.87,3.78429774]
[1725486105643,0.05228317,133.89,133.88,3.7348]
[1725486108946,0.05228317,133.89,133.88,7.42970105]
[1725486111646,0.05228317,133.89,133.88,16.61970105]
[1725486127064,0.05228317,133.89,133.87,0.04919774]
[1725486132370,0.05228317,133.89,133.81,110.57115959]
[1725486132371,3.735,133.88,133.84,3.7358]
[1725486132569,0.05228317,133.89,133.84,9.19]
[1725486133065,3.7351,133.87,133.84,9.19]
[1725486133570,3.7351,133.87,133.84,9.24077303]
[1725486134567,12.88696743,133.88,133.74,237.16991253]
[1725486134769,9.19,133.86,133.8,9.19]
[1725486135073,2.7818,133.85,133.8,9.19]
[1725486135574,0.05661213,133.84,133.81,0.04724212]
[1725486136279,3.79271213,133.84,133.81,0.04724212]
[1725486137571,3.79271213,133.84,133.81,9.23724212]
[1725486148685,3.79271213,133.84,133.81,0.04724212]
[1725486156084,0.05661213,133.84,133.81,0.04724212]
[1725486156283,1.3491,133.92,133.83,9.19]
[1725486156483,9.19,133.91,133.83,9.19]
[1725486156678,3.67620079,133.9,133.84,3.67059568]
[1725486156881,3.735,133.88,133.84,7.40649568]
[1725486157288,0.04989053,133.87,133.85,0.05679069]
[1725486157886,3.7354,133.86,133.85,0.05679069]
[1725486159480,5.17689053,133.87,133.85,0.05679069]
[1725486164890,14.36689053,133.87,133.85,0.05679069]
[1725486174003,3.7354,133.86,133.85,0.05679069]
[1725486174806,12.9254,133.86,133.85,0.05679069]
[1725486218744,3.78509053,133.87,133.85,3.79249069]
[1725486218947,9.19,133.86,133.85,0.05679069]
[1725486220043,9.19,133.86,133.85,3.79249069]
[1725486224651,12.9254,133.86,133.85,0.05679069]
[1725486233760,9.19,133.86,133.85,0.05679069]
[1725486234356,12.9254,133.86,133.85,0.05679069]
[1725486240354,3.7354,133.86,133.85,0.05679069]
[1725486240559,12.9254,133.86,133.85,0.05679069]
[1725486240755,3.7354,133.86,133.85,0.05679069]
[1725486240960,12.9254,133.86,133.85,0.05679069]
[1725486241557,3.7354,133.86,133.85,0.05679069]
[1725486241756,12.9254,133.86,133.85,0.05679069]
[1725486250466,0.04989053,133.87,133.86,3.7354]
[1725486327439,0.04989053,133.87,133.86,12.9254]
[1725486330742,0.04989053,133.87,133.86,3.7354]
[1725486455927,0.04989053,133.87,133.86,12.9254]
[1725486467231,0.04989053,133.87,133.86,3.7354]
[1725486467641,0.04989053,133.87,133.86,12.9254]
[1725486486549,0.04989053,133.87,133.86,3.7354]
[1725486486750,0.04989053,133.87,133.86,12.9254]
[1725486501158,4.1052,133.93,133.88,177.78376773]
[1725486501359,4.1052,133.93,133.89,9.19]
[1725486501565,4.1052,133.93,133.89,12.94616348]
[1725486502065,0.05286051,133.92,133.9,0.05208859]
[1725486505167,0.05286051,133.92,133.9,3.78628859]
[1725486507471,0.05286051,133.92,133.91,3.734]
[1725486514168,0.05286051,133.92,133.91,12.924]
[1725486518477,3.7324,133.97,133.93,3.7334]
[1725486519477,0.04763152,133.96,133.94,0.04773983]
[1725486520287,0.04763152,133.96,133.95,12.9228]
[1725486521074,3.68367426,134.04,133.95,12.9228]
[1725486521075,21.57696324,134.16,133.98,3.7319]
[1725486521277,9.19,134.05,133.99,9.19]
[1725486521677,3.7308,134.03,133.99,9.19]
[1725486521880,3.7308,134.03,133.99,12.9217]
[1725486522077,0.05501475,134.02,134.0,3.71597749]
[1725486523379,0.05501475,134.02,134.0,7.44727749]
[1725486525184,0.05501475,134.02,134.01,3.7312]
[1725486529580,0.05501475,134.02,134.01,12.9212]
[1725486530383,0.05501475,134.02,134.01,3.7312]
[1725486534289,0.05501475,134.02,134.01,12.9212]
[1725486538486,0.05501475,134.02,134.01,3.7312]
[1725486538685,0.05501475,134.02,134.01,12.9212]
[1725486540098,1.3744,134.07,134.04,3.7303]
[1725486540289,1.3744,134.07,134.04,12.9203]
[1725486540999,0.02275239,134.07,134.05,3.7299]
[1725486542195,0.02275239,134.07,134.04,9.23853339]
[1725486543100,0.02275239,134.07,134.05,3.7299]
[1725486547404,0.02275239,134.07,134.06,3.7298]
[1725486547612,0.02275239,134.07,134.04,9.23853339]
[1725486548610,0.02275239,134.07,134.05,3.7299]
[1725486550509,0.02275239,134.07,134.05,3.7301]
[1725486555210,0.02275239,134.07,134.06,3.7298]
[1725486558306,0.02275239,134.07,134.06,12.9198]
[1725486563309,1.3741,134.29,134.11,5.0]
[1725486563509,9.19,134.24,134.12,1.4303]
[1725486563710,9.19,134.2,134.11,5.0]
[1725486564004,9.19,134.18,134.11,12.84646408]
[1725486564207,1.3729,134.17,134.13,0.05739034]
[1725486564512,1.3729,134.17,134.14,9.19]
[1725486565205,1.3729,134.17,134.13,7.47570037]
[1725486565414,1.3729,134.17,134.14,9.19]
[1725486566404,2.7712,134.19,134.14,9.19]
[1725486567010,2.7712,134.19,134.14,12.9174]
[1725486567715,2.7712,134.19,134.15,9.19]
[1725486567913,2.7712,134.19,134.15,12.9173]
[1725486569011,2.7712,134.19,134.15,3.7273]
[1725486569211,2.7712,134.19,134.15,12.9173]
[1725486571318,6.4974,134.19,134.15,12.9173]
[1725486572013,1.3741,134.19,134.16,3.727]
[1725486572214,1.3741,134.19,134.16,3.78278458]
[1725486574614,3.7255,134.22,134.18,12.9164]
[1725486574820,7.52507491,134.22,134.18,16.69025677]
[1725486576020,7.52507491,134.22,134.19,3.7262]
[1725486576221,7.52507491,134.22,134.19,3.77617777]
[1725486576821,3.7255,134.22,134.19,3.77617777]
[1725486578228,3.7257,134.21,134.19,0.04997777]
[1725486582030,228.0,134.34,134.2,9.19]
[1725486582219,9.19,134.26,134.23,0.05636017]
[1725486583422,3.7248,134.24,134.23,0.05636017]
[1725486584125,26.3576,134.27,134.19,9.19]
[1725486584320,9.19,134.26,134.19,9.19]
[1725486584927,3.7258,134.21,134.19,9.19]
[1725486585230,3.77527621,134.21,134.19,9.23883872]
[1725486587627,3.7259,134.2,134.19,0.04883872]
[1725486587833,3.7259,134.2,134.17,3.7266]
[1725486587834,0.04947621,134.21,134.17,9.19]
[1725486588133,3.71832334,134.21,134.16,3.75531325]
[1725486588326,0.04947621,134.21,134.16,12.94531325]
[1725486588726,3.81457237,134.21,134.16,12.94531325]
[1725486588932,3.7267,134.18,134.17,0.04880492]
[1725486603542,3.7267,134.18,134.17,9.23880492]
[1725486604443,3.7267,134.18,134.17,0.04880492]
[1725486608242,6.53607237,134.21,134.12,3.728]
[1725486608243,6.48659616,134.21,134.12,9.19]
[1725486608551,6.48659616,134.21,134.14,9.19]
[1725486608744,3.7276,134.15,134.14,9.19]
[1725486609044,31.61,134.2,134.13,3.77730559]
[1725486609247,3.7272,134.16,134.15,0.05480649]
[1725486609545,7.46499169,134.16,134.15,0.05480649]
[1725486609737,3.7272,134.16,134.15,0.05480649]
[1725486610343,7.50413282,134.16,134.15,0.05480649]
[1725486610546,3.7272,134.16,134.15,0.05480649]
[1725486610850,7.47878428,134.16,134.15,0.05480649]
[1725486611045,3.7272,134.16,134.15,0.05480649]
[1725486611451,7.4835376,134.16,134.15,0.05480649]
[1725486612348,3.7281,134.13,134.11,9.19]
[1725486613248,3.7563376,134.16,134.11,9.19]
[1725486613441,0.05588897,134.15,134.12,0.05735726]
[1725486613644,0.05643215,134.15,134.12,0.05612975]
[1725486614448,3.7279,134.13,134.12,0.05612975]
[1725486620142,3.7276,134.14,134.12,0.05612975]
[1725486620357,0.05643215,134.15,134.12,0.05612975]
[1725486620751,3.7277,134.14,134.12,0.05612975]
[1725486621345,3.78393215,134.15,134.12,3.78422975]
[1725486621851,3.78393215,134.15,134.12,12.97422975]
[1725486622252,3.78393215,134.15,134.13,3.7278]
[1725486622455,3.78393215,134.15,134.13,12.9178]
[1725486622655,1.3611,134.21,134.14,9.19]
[1725486622849,3.74888159,134.22,134.16,12.9169]
[1725486623049,3.7262,134.2,134.16,9.19]
[1725486623250,3.7262,134.2,134.17,7.49561282]
[1725486623647,3.7262,134.19,134.17,3.78166274]
[1725486624149,3.7262,134.19,134.17,0.05506274]
[1725486625056,3.78011483,134.2,134.17,3.78176274]
[1725486626055,0.05401483,134.2,134.17,0.05506274]
[1725486627257,3.7262,134.19,134.17,0.05506274]
[1725486627652,0.05401483,134.2,134.17,0.05506274]
[1725486627957,3.7265,134.18,134.17,0.05506274]
[1725486644278,0.05401483,134.2,134.17,0.05506274]
[1725486644876,0.05401483,134.2,134.18,3.7263]
[1725486645076,0.05401483,134.2,134.17,0.05506274]
[1725486646279,3.78001483,134.2,134.18,3.7264]
[1725486648880,0.05401483,134.2,134.17,0.05506274]
[1725486649280,3.7264,134.19,134.17,0.05506274]
[1725486649879,3.7264,134.19,134.17,3.78176274]
[1725486650580,3.7264,134.19,134.17,0.05506274]
[1725486653289,3.7264,134.19,134.17,3.78176274]
[1725486654690,0.05401483,134.2,134.18,3.7264]
[1725486655190,0.05401483,134.2,134.19,3.7262]
[1725486659597,242.9106,134.32,134.21,3.7255]
[1725486659895,9.19,134.27,134.21,3.7255]
[1725486660393,3.7249,134.24,134.19,12.9161]
[1725486660591,0.0536256,134.23,134.2,0.05687988]
[1725486661283,3.7789256,134.23,134.2,0.05687988]
[1725486661895,3.7789256,134.23,134.2,3.74083121]
[1725486662097,0.0536256,134.23,134.21,3.7256]
[1725486662293,1.4331,134.3,134.2,0.05687988]
[1725486662589,3.725,134.24,134.21,8.74255891]
[1725486662993,9.19,134.28,134.21,14.20705891]
[1725486663389,3.7247,134.25,134.23,0.04787989]
[1725486664194,0.04473772,134.26,134.24,3.7248]
[1725486664397,0.04473772,134.26,134.23,0.04787989]
[1725486664790,3.76903772,134.26,134.23,3.77287989]
[1725486665287,0.04473772,134.26,134.23,0.04787989]
[1725486665693,0.04473772,134.26,134.24,3.7246]
[1725486666198,0.04473772,134.26,134.24,9.19]
[1725486666392,0.04473772,134.26,134.23,0.04787989]
[1725486666590,0.04473772,134.26,134.23,9.23787989]
[1725486666891,0.04473772,134.26,134.24,3.7248]
[1725486667291,0.04473772,134.26,134.23,9.23787989]
[1725486667492,0.04473772,134.26,134.25,12.9145]
[1725486668393,3.7233,134.3,134.27,3.7239]
[1725486668794,3.7233,134.3,134.22,1.3628]
[1725486668795,11.15744523,134.35,134.26,9.19]
[1725486669098,0.27380371,134.34,134.26,9.19]
[1725486669499,0.27380371,134.34,134.29,0.05437835]
[1725486669693,12.88244523,134.35,134.29,0.05437835]
[1725486670202,3.723,134.31,134.29,0.05437835]
[1725486677999,9.19,134.33,134.29,0.05437835]
[1725486678401,4.1632,134.34,134.29,0.05437835]
[1725486678601,3.7231,134.31,134.29,0.05437835]
[1725486682204,3.7226,134.32,134.29,3.77777835]
[1725486682505,13.3532,134.34,134.29,3.77777835]
[1725486683008,13.3532,134.34,134.3,3.7231]
[1725486683208,4.1632,134.34,134.29,0.05437835]
[1725486683601,3.7226,134.32,134.29,3.77757835]
[1725486683802,4.1632,134.34,134.29,3.77757835]
[1725486683803,9.19,134.33,134.29,0.05437835]
[1725486684301,3.7229,134.31,134.29,0.05437835]
[1725486685999,4.1632,134.34,134.29,0.05437835]
[1725486686207,9.19,134.33,134.29,0.05437835]
[1725486686608,3.7227,134.32,134.29,0.05437835]
[1725486686810,9.19,134.33,134.29,0.05437835]
[1725486687410,3.723,134.31,134.29,0.05437835]
[1725486687610,9.19,134.32,134.29,0.05437835]
[1725486687809,4.1632,134.34,134.21,5.01705891]
[1725486688008,9.19,134.3,134.23,9.19]
[1725486688205,3.79599284,134.29,134.23,9.19]
[1725486688513,3.7242,134.27,134.23,9.19]
[1725486688708,9.19,134.28,134.23,3.7248]
[1725486688911,9.19,134.28,134.24,0.05150571]
[1725486688912,3.7243,134.26,134.24,0.05150571]
[1725486689113,0.05437835,134.27,134.24,0.05150571]
[1725486689609,3.7245,134.25,134.24,0.05150571]
[1725486689806,5.13580008,134.28,134.2,12.9158]
[1725486690002,5.13580008,134.28,134.16,2.7324]
[1725486690003,9.19,134.25,134.19,9.19]
[1725486690406,9.19,134.25,134.19,12.916]
[1725486690813,3.7254,134.22,134.21,0.0505626]
[1725486691607,9.24026174,134.23,134.18,3.7264]
[1725486691608,3.7257,134.21,134.18,3.7264]
[1725486692114,3.7257,134.21,134.17,12.9166]
[1725486692308,3.7257,134.21,134.17,3.7266]
[1725486692506,3.7257,134.21,134.18,0.052682]
[1725486692807,3.7259,134.2,134.18,0.052682]
[1725486694910,2.7109,134.22,134.18,0.052682]
[1725486695414,3.7262,134.2,134.18,0.052682]
[1725486695609,2.7109,134.22,134.18,0.052682]
[1725486696009,3.7262,134.19,134.18,0.052682]
[1725486697116,3.7267,134.18,134.15,9.19]
[1725486697514,0.04860313,134.2,134.14,9.19]
[1725486697714,3.727,134.17,134.14,9.19]
[1725486698009,9.19,134.2,134.1,78.24488884]
[1725486698206,3.78007978,134.16,134.14,0.05585188]
[1725486698408,0.04875123,134.16,134.1,78.24488884]
[1725486698610,0.04875123,134.16,134.11,9.19]
[1725486698816,0.04875123,134.16,134.11,12.9183]
[1725486698817,3.7276,134.15,134.11,12.9183]
[1725486699418,3.7278,134.14,134.12,0.05208681]
[1725486699718,2.70495123,134.16,134.12,0.05208681]
[1725486699918,3.7279,134.13,134.12,0.05208681]
[1725486703912,3.7286,134.11,134.07,9.19]
[1725486704125,3.7286,134.11,134.05,3.76417064]
[1725486704425,3.7286,134.11,134.02,87.93359224]
[1725486704721,3.7286,134.11,134.07,3.7294]
[1725486704921,0.05066127,134.1,134.08,0.05576581]
[1725486705316,3.77936127,134.1,134.08,0.05576581]
[1725486708421,0.05066127,134.1,134.08,0.05576581]
[1725486710224,0.05066127,134.1,134.08,3.78496581]
[1725486712629,0.05066127,134.1,134.08,0.05576581]
[1725486713223,0.05066127,134.1,134.09,3.729]
[1725486713530,0.05066127,134.1,134.09,12.919]
[1725486713723,1.3215,134.16,134.09,9.19]
[1725486713928,3.7269,134.17,134.13,3.7277]
[1725486714323,3.7269,134.17,134.12,12.84632689]
[1725486714721,0.05386282,134.16,134.13,3.7748082]
[1725486716325,9.19,134.15,134.13,3.7748082]
[1725486717533,9.19,134.15,134.13,0.0470082]
[1725486718926,9.19,134.15,134.13,3.7749082]
[1725486723337,0.05386282,134.16,134.13,3.7749082]
[1725486723834,0.05386282,134.16,134.13,0.0470082]
[1725486724328,0.05386282,134.16,134.15,3.7273]
[1725486747553,9.19,134.25,134.15,9.19]
[1725486747849,9.19,134.25,134.19,9.19]
[1725486748050,9.19,134.25,134.23,3.7249]
[1725486748453,9.24604577,134.25,134.23,3.78099215]
[1725486753952,0.05604577,134.25,134.24,3.7248]
[1725486758750,9.24604577,134.25,134.24,3.7248]
[1725486758959,0.05604577,134.25,134.24,3.7248]
[1725486763861,0.05604577,134.25,134.24,7.4188295]
[1725486764064,0.05604577,134.25,134.24,3.7248]
[1725486788877,0.05604577,134.25,134.24,12.9148]
[1725486791173,0.05604577,134.25,134.24,3.7248]
[1725486791380,0.05604577,134.25,134.24,12.9148]
[1725486795685,13.242,134.32,134.29,3.7234]
[1725486796672,13.29011638,134.32,134.29,3.7712219]
[1725486801175,4.10011638,134.32,134.29,3.7712219]
[1725486802685,7.82271638,134.32,134.29,3.7712219]
[1725486803188,17.01271638,134.32,134.29,3.7712219]
[1725486811507,17.01271638,134.32,134.29,0.0478219]
[1725486812106,17.01271638,134.32,134.29,3.7712219]
[1725486813902,4.10011638,134.32,134.29,3.7712219]
[1725486814307,4.10011638,134.32,134.3,3.723]
[1725486827009,4.10011638,134.32,134.29,0.0478219]
[1725486827010,0.04811638,134.32,134.31,3.7229]
[1725486835125,0.04811638,134.32,134.3,3.7231]
[1725486841731,0.04811638,134.32,134.31,3.7229]
[1725486846132,0.04811638,134.32,134.3,3.723]
[1725486848527,0.04811638,134.32,134.31,3.7229]
[1725486855737,0.04811638,134.32,134.31,7.53832699]
[1725486856134,0.04811638,134.32,134.31,3.7229]
[1725486857739,0.04811638,134.32,134.31,12.9129]
[1725486858338,0.04811638,134.32,134.31,3.7229]
[1725486858536,0.04811638,134.32,134.31,12.9129]
[1725486859135,0.04811638,134.32,134.31,3.7229]
[1725486859534,0.04811638,134.32,134.31,12.9129]
[1725486859733,0.04811638,134.32,134.31,3.7229]
[1725486860137,0.04811638,134.32,134.31,12.9129]
[1725486860535,69.46327986,134.41,134.34,3.7218]
[1725486860735,9.19,134.39,134.34,3.7218]
[1725486860942,9.19,134.43,134.36,9.19]
[1725486861243,12.90091423,134.43,134.36,9.19]
[1725486861445,1.0,134.5,134.31,1.4179]
[1725486861446,40.00718587,134.5,134.4,9.19]
[1725486861636,9.19,134.46,134.4,16.64216083]
[1725486861842,0.0567659,134.44,134.42,0.04892745]
[1725486862041,0.05020324,134.44,134.42,0.04892745]
[1725486862243,0.05020324,134.44,134.42,3.76852745]
[1725486862442,0.05020324,134.44,134.42,0.04892745]
[1725486862843,0.05020324,134.44,134.42,3.76852745]
[1725486863349,0.05020324,134.44,134.42,9.23892745]
[1725486863947,0.05020324,134.44,134.42,0.04892745]
[1725486864246,0.05020324,134.44,134.42,3.76862745]
[1725486864448,0.05020324,134.44,134.42,0.04892745]
[1725486865048,0.05020324,134.44,134.43,3.7195]
[1725486868457,0.05020324,134.44,134.42,3.76862745]
[1725486871465,0.05020324,134.44,134.43,3.7195]
[1725486873272,0.05020324,134.44,134.42,3.76862745]